fUSD/lending_fUSD_20250804
["ID","MTS","AMOUNT","RATE_DAILY","PERIOD"]
[377299207,1754323891962,-941.47,0.00054794,120]
[377299208,1754323891972,-467.07,0.00054794,120]
[377299209,1754323891981,-400.0,0.00054794,120]
[377299210,1754323891991,-889.09,0.00054794,120]
[377299211,1754323892001,-400.0,0.00054794,120]
[377299212,1754323892011,-2133.02,0.00054794,120]
[377299213,1754323892021,-400.0,0.00054794,120]
[377299214,1754323892031,-400.0,0.00054794,120]
[377299215,1754323892040,-400.0,0.00054794,120]
[377299216,1754323892054,-1220.79,0.00054794,120]
[377299217,1754323892063,-3253.93,0.00054794,120]
[377299218,1754323892073,-400.0,0.00054794,120]
[377299219,1754323892083,-189.632918,0.00054794,120]
[377299220,1754323892092,-400.0,0.00054794,120]
[377299221,1754323892102,-1801.11,0.00054794,120]
[377299222,1754323892111,-400.0,0.00054794,120]
[377299223,1754323892121,-400.0,0.00054794,120]
[377299224,1754323892131,-400.0,0.00054794,120]
[377299225,1754323892140,-668.46,0.00054794,120]
[377299226,1754323892149,-1986.92,0.00054794,120]
[377299227,1754323892158,-400.0,0.00054794,120]
[377299228,1754323892168,-807.24,0.00054794,120]
[377299229,1754323892177,-1154.57,0.00054794,120]
[377299230,1754323892186,-1389.33,0.00054794,120]
[377299231,1754323892196,-400.0,0.00054794,120]
[377299232,1754323892206,-400.0,0.00054794,120]
[377299233,1754323892216,-387.89566673,0.00054794,120]
[377299234,1754323892226,-1654.22,0.00054794,120]
[377299235,1754323892236,-400.0,0.00054794,120]
[377299236,1754323892244,-210.11698,0.00054794,120]
[377299237,1754323892254,-400.0,0.00054794,120]
[377299238,1754323892264,-474.18,0.00054794,120]
[377299239,1754323892273,-189.632917,0.00054794,120]
[377299240,1754323892284,-2430.42,0.00054794,120]
[377299241,1754323892293,-661.6,0.00054794,120]
[377299242,1754323892304,-2181.13,0.00054794,120]
[377299243,1754323892313,-400.0,0.00054794,120]
[377299244,1754323892324,-315.0998597,0.00054794,120]
[377299245,1754323892334,-404.58249183,0.00054794,120]
[377299246,1754323892343,-3510.77,0.00054794,120]
[377299247,1754323892354,-735.86,0.00054794,120]
[377299248,1754323892363,-402.25787493,0.00054794,120]
[377299249,1754323892376,-400.0,0.00054794,120]
[377299250,1754323892386,-3910.87,0.00054794,120]
[377299251,1754323892395,-400.0,0.00054794,120]
[377299252,1754323892405,-210.116985,0.00054794,120]
[377299253,1754323892417,-400.0,0.00054794,120]
[377299254,1754323892428,-2615.89,0.00054794,120]
[377299255,1754323892438,-400.0,0.00054794,120]
[377299256,1754323892447,-2604.8,0.00054794,120]
[377299257,1754323892456,-2307.56,0.00054794,120]
[377299258,1754323892466,-400.0,0.00054794,120]
[377299259,1754323892476,-1379.55,0.00054794,120]
[377299260,1754323892486,-461.32657303,0.00054794,120]
[377299261,1754323892498,-400.0,0.00054794,120]
[377299262,1754323892508,-400.0,0.00054794,120]
[377299263,1754323892518,-400.0,0.00054794,120]
[377299264,1754323892528,-1277.55,0.00054794,120]
[377299265,1754323892537,-1385.35,0.00054794,120]
[377299266,1754323892549,-1380.93,0.00054794,120]
[377299267,1754323892558,-400.0,0.00054794,120]
[377299268,1754323892567,-400.0,0.00054794,120]
[377299269,1754323892577,-244.17624943,0.00054794,120]
[377299270,1754323892587,-996.16,0.00054794,120]
[377299271,1754323892598,-604.64,0.00054794,120]
[377299272,1754323892608,-400.0,0.00054794,120]
[377299273,1754323892618,-1745.64,0.00054794,120]
[377299274,1754323892630,-1297.11,0.00054794,120]
[377299275,1754323892639,-400.0,0.00054794,120]
[377299276,1754323892648,-400.0,0.00054794,120]
[377299277,1754323892657,-400.0,0.00054794,120]
[377299278,1754323892668,-400.0,0.00054794,120]
[377299279,1754323892679,-400.0,0.00054794,120]
[377299280,1754323892688,-400.0,0.00054794,120]
[377299281,1754323892701,-2532.74,0.00054794,120]
[377299282,1754323892710,-475.00598143,0.00054794,120]
[377299283,1754323892720,-469.1,0.00054794,120]
[377299284,1754323892730,-400.0,0.00054794,120]
[377299285,1754323892741,-2726.28,0.00054794,120]
[377299286,1754323892751,-2182.28,0.00054794,120]
[377299287,1754323892760,-1877.44,0.00054794,30]
[377299288,1754323892770,-430.36,0.00054794,120]
[377299289,1754323892779,-400.0,0.00054794,120]
[377299290,1754323892788,-1536.92,0.00054794,120]
[377299291,1754323892800,-5448.21,0.00054794,120]
[377299292,1754323892810,-400.0,0.00054794,120]
[377299293,1754323892819,-691.71,0.00054794,120]
[377299294,1754323892829,-400.0,0.00054794,120]
[377299295,1754323892838,-400.0,0.00054794,120]
[377299296,1754323892848,-400.0,0.00054794,120]
[377299297,1754323892858,-400.0,0.00054794,20]
[377299298,1754323892867,-1848.74,0.00054794,120]
[377299299,1754323892877,-400.0,0.00054794,120]
[377299300,1754323892886,-3246.49,0.00054794,120]
[377299301,1754323892896,-400.0,0.00054794,120]
[377299302,1754323892905,-2136.79,0.00054794,120]
[377299303,1754323892916,-469.16058371,0.00054794,30]
[377299304,1754323892926,-745.77,0.00054794,120]
[377299305,1754323892937,-400.0,0.00054794,75]
[377299306,1754323892946,-400.0,0.00054794,120]
[377299307,1754323892957,-400.0,0.00054794,120]
[377299308,1754323892967,-400.0,0.00054794,120]
[377299309,1754323892978,-400.0,0.00054794,120]
[377299310,1754323892988,-460.96,0.00054794,120]
[377299311,1754323892998,-1276.28,0.00054794,120]
[377299312,1754323893009,-539.16,0.00054794,120]
[377299313,1754323893019,-400.0,0.00054794,120]
[377299314,1754323893029,-488.55,0.00054794,120]
[377299315,1754323893039,-3663.55,0.00054794,120]
[377299316,1754323893051,-400.0,0.00054794,120]
[377299317,1754323893061,-3381.53,0.00054794,120]
[377299318,1754323893071,-1344.41,0.00054794,120]
[377299319,1754323893080,-400.000001,0.00054794,120]
[377299320,1754323893090,-4146.88,0.00054794,120]
[377299321,1754323893100,-400.0,0.00054794,120]
[377299322,1754323893110,-478.91,0.00054794,120]
[377299323,1754323893119,-1081.11,0.00054794,120]
[377299324,1754323893129,-400.0,0.00054794,120]
[377299325,1754323893138,-401.15954674,0.00054794,120]
[377299326,1754323893148,-1318.88,0.00054794,120]
[377299327,1754323893157,-400.0,0.00054794,120]
[377299328,1754323893167,-400.0,0.00054794,120]
[377299329,1754323893176,-1157.81,0.00054794,120]
[377299330,1754323893186,-1215.84,0.00054794,60]
[377299331,1754323893196,-400.0,0.00054794,120]
[377299332,1754323893206,-1236.99,0.00054794,120]
[377299333,1754323893216,-1413.64,0.00054794,120]
[377299334,1754323893226,-400.0,0.00054794,120]
[377299335,1754323893236,-3237.61,0.00054794,120]
[377299336,1754323893246,-526.73,0.00054794,120]
[377299337,1754323893257,-400.0,0.00054794,120]
[377299338,1754323893267,-2146.69,0.00054794,120]
[377299339,1754323893277,-400.0,0.00054794,120]
[377299340,1754323893287,-1172.49,0.00054794,120]
[377299341,1754323893296,-652.88,0.00054794,120]
[377299342,1754323893306,-400.0,0.00054794,120]
[377299343,1754323893317,-829.51,0.00054794,120]
[377299344,1754323893330,-563.43,0.00054794,120]
[377299345,1754323893339,-460.0,0.00054794,120]
[377299346,1754323893349,-400.0,0.00054794,120]
[377299347,1754323893359,-857.7,0.00054794,120]
[377299348,1754323893370,-5816.89,0.00054794,120]
[377299349,1754323893379,-1214.11,0.00054794,120]
[377299350,1754323893389,-2285.49,0.00054794,120]
[377299351,1754323893399,-400.0,0.00054794,120]
[377299352,1754323893411,-832.65,0.00054794,120]
[377299353,1754323893431,-5639.47,0.00054794,120]
[377299354,1754323893441,-11681.13,0.00054794,118]
[377299355,1754323893452,-587.48,0.00054794,120]
[377299356,1754323893462,-400.0,0.00054794,120]
[377299357,1754323893472,-400.0,0.00054794,120]
[377299358,1754323893481,-505.69,0.00054794,120]
[377299359,1754323893491,-1450.1,0.00054794,120]
[377299360,1754323893501,-400.0,0.00054794,120]
[377299361,1754323893512,-400.0,0.00054794,120]
[377299362,1754323893522,-151.0,0.00054794,120]
[377299363,1754323893532,-400.0,0.00054794,120]
[377299364,1754323893542,-400.0,0.00054794,120]
[377299365,1754323893555,-526.34,0.00054794,120]
[377299366,1754323893564,-1321.78,0.00054794,120]
[377299367,1754323893574,-469.44,0.00054794,120]
[377299368,1754323893585,-435.66,0.00054794,120]
[377299369,1754323893594,-2779.99,0.00054794,120]
[377299370,1754323893603,-400.0,0.00054794,120]
[377299371,1754323893613,-400.0,0.00054794,120]
[377299372,1754323893623,-1187.97,0.00054794,120]
[377299373,1754323893633,-2220.38,0.00054794,120]
[377299374,1754323893643,-400.0,0.00054794,120]
[377299375,1754323893653,-400.0,0.00054794,120]
[377299376,1754323893663,-401.13728547,0.00054794,120]
[377299377,1754323893672,-2555.25,0.00054794,120]
[377299378,1754323893682,-400.0,0.00054794,120]
[377299379,1754323893693,-6244.04,0.00054794,120]
[377299380,1754323893702,-1007.85,0.00054794,120]
[377299381,1754323893712,-796.8,0.00054794,120]
[377299382,1754323893721,-960.76,0.00054794,120]
[377299383,1754323893731,-2562.65,0.00054794,120]
[377299384,1754323893741,-2377.96,0.00054794,120]
[377299385,1754323893751,-2914.94,0.00054794,120]
[377299386,1754323893761,-400.0,0.00054794,120]
[377299387,1754323893772,-400.0,0.00054794,120]
[377299388,1754323893783,-855.75,0.00054794,120]
[377299389,1754323893792,-400.0,0.00054794,120]
[377299390,1754323893804,-479.19515036,0.00054794,120]
[377299391,1754323893815,-1149.53,0.00054794,120]
[377299392,1754323893825,-400.0,0.00054794,120]
[377299393,1754323893835,-400.0,0.00054794,120]
[377299394,1754323893845,-400.0,0.00054794,120]
[377299395,1754323893855,-400.0,0.00054794,120]
[377299396,1754323893864,-400.0,0.00054794,120]
[377299397,1754323893875,-400.0,0.00054794,120]
[377299398,1754323893885,-650.0,0.00054794,120]
[377299399,1754323893894,-2646.23,0.00054794,120]
[377299400,1754323893903,-687.4,0.00054794,120]
[377299401,1754323893914,-400.0,0.00054794,120]
[377299402,1754323893923,-400.0,0.00054794,120]
[377299403,1754323893934,-939.32,0.00054794,120]
[377299404,1754323893944,-424.42,0.00054794,120]
[377299405,1754323893954,-400.0,0.00054794,120]
[377299406,1754323893964,-400.0,0.00054794,120]
[377299407,1754323893975,-1361.27,0.00054794,120]
[377299408,1754323893986,-400.0,0.00054794,120]
[377299409,1754323893997,-400.0,0.00054794,120]
[377299410,1754323894007,-825.48,0.00054794,120]
[377299411,1754323894017,-400.0,0.00054794,120]
[377299412,1754323894027,-400.0,0.00054794,120]
[377299413,1754323894038,-400.0,0.00054794,120]
[377299414,1754323894049,-400.0,0.00054794,120]
[377299415,1754323894059,-2603.83,0.00054794,120]
[377299416,1754323894069,-400.0,0.00054794,120]
[377299417,1754323894079,-2197.41,0.00054794,120]
[377299418,1754323894089,-999.1,0.00054794,120]
[377299419,1754323894099,-2067.67,0.00054794,120]
[377299420,1754323894109,-400.0,0.00054794,120]
[377299421,1754323894119,-4710.33,0.00054794,120]
[377299422,1754323894129,-2429.38,0.00054794,120]
[377299423,1754323894139,-400.0,0.00054794,120]
[377299424,1754323894149,-400.0,0.00054794,120]
[377299425,1754323894158,-400.0,0.00054794,120]
[377299426,1754323894168,-400.0,0.00054794,120]
[377299427,1754323894178,-2981.09,0.00054794,120]
[377299428,1754323894188,-400.0,0.00054794,120]
[377299429,1754323894198,-2480.21,0.00054794,120]
[377299430,1754323894208,-1443.18,0.00054794,120]
[377299431,1754323894218,-446.69,0.00054794,120]
[377299432,1754323894227,-400.0,0.00054794,120]
[377299433,1754323894237,-400.0,0.00054794,120]
[377299434,1754323894247,-3209.15,0.00054794,120]
[377299435,1754323894256,-400.0,0.00054794,120]
[377299436,1754323894266,-404.4062727,0.00054794,120]
[377299437,1754323894276,-400.0,0.00054794,120]
[377299438,1754323894285,-8150.3,0.00054794,120]
[377299439,1754323894297,-400.0,0.00054794,120]
[377299440,1754323894306,-400.0,0.00054794,120]
[377299441,1754323894316,-400.0,0.00054794,120]
[377299442,1754323894329,-400.0,0.00054794,120]
[377299443,1754323894339,-6818.15,0.00054794,120]
[377299444,1754323894348,-697.9,0.00054794,120]
[377299445,1754323894357,-3375.99,0.00054794,120]
[377299446,1754323894368,-400.0,0.00054794,120]
[377299447,1754323894378,-3258.34,0.00054794,120]
[377299448,1754323894388,-3698.16,0.00054794,120]
[377299449,1754323894398,-400.0,0.00054794,120]
[377299450,1754323894408,-558.68,0.00054794,120]
[377299451,1754323894418,-400.0,0.00054794,120]
[377299452,1754323894427,-730.14,0.00054794,120]
[377299453,1754323894437,-1379.18,0.00054794,120]
[377299454,1754323894447,-400.0,0.00054794,120]
[377299455,1754323894457,-3718.95,0.00054794,120]
[377299456,1754323894467,-848.3,0.00054794,120]
[377299457,1754323894477,-400.0,0.00054794,120]
[377299458,1754323894488,-400.0,0.00054794,120]
[377299459,1754323894498,-400.0,0.00054794,120]
[377299460,1754323894508,-400.0,0.00054794,120]
[377299461,1754323894518,-1106.06,0.00054794,120]
[377299462,1754323894527,-400.0,0.00054794,120]
[377299463,1754323894537,-400.0,0.00054794,120]
[377299464,1754323894548,-480.06,0.00054794,120]
[377299465,1754323894557,-400.0,0.00054794,120]
[377299466,1754323894567,-400.0,0.00054794,120]
[377299467,1754323894576,-1008.37,0.00054794,120]
[377299468,1754323894586,-4208.41,0.00054794,120]
[377299469,1754323894596,-400.0,0.00054794,120]
[377299470,1754323894606,-1028.9,0.00054794,120]
[377299471,1754323894616,-304.46104654,0.00054794,120]
[377299472,1754323894626,-1031.67,0.00054794,120]
[377299473,1754323894636,-400.0,0.00054794,120]
[377299474,1754323894646,-400.0,0.00054794,120]
[377299475,1754323894656,-400.0,0.00054794,120]
[377299476,1754323894666,-400.0,0.00054794,120]
[377299477,1754323894676,-400.0,0.00054794,120]
[377299478,1754323894685,-4003.35,0.00054794,120]
[377299479,1754323894695,-740.78,0.00054794,120]
[377299480,1754323894705,-400.0,0.00054794,120]
[377299481,1754323894715,-400.0,0.00054794,120]
[377299482,1754323894725,-4872.04,0.00054794,120]
[377299483,1754323894735,-486.27,0.00054794,120]
[377299484,1754323894745,-400.0,0.00054794,120]
[377299485,1754323894755,-400.0,0.00054794,120]
[377299486,1754323894765,-400.0,0.00054794,120]
[377299487,1754323894775,-416.94733518,0.00054794,120]
[377299488,1754323894785,-962.68,0.00054794,120]
[377299489,1754323894797,-400.0,0.00054794,120]
[377299490,1754323894807,-14841.9,0.00054794,120]
[377299491,1754323894816,-400.0,0.00054794,120]
[377299492,1754323894826,-400.0,0.00054794,120]
[377299493,1754323894836,-400.0,0.00054794,120]
[377299494,1754323894846,-400.0,0.00054794,120]
[377299495,1754323894856,-400.0,0.00054794,120]
[377299496,1754323894866,-400.0,0.00054794,120]
[377299497,1754323894876,-460.0,0.00054794,120]
[377299498,1754323894886,-1485.47,0.00054794,120]
[377299499,1754323894895,-9804.77,0.00054794,120]
[377299500,1754323894906,-3462.21,0.00054794,120]
[377299501,1754323894915,-5433.89,0.00054794,120]
[377299502,1754323894926,-400.0,0.00054794,120]
[377299503,1754323894936,-1441.85,0.00054794,120]
[377299504,1754323894946,-2216.58,0.00054794,120]
[377299505,1754323894956,-1419.52,0.00054794,120]
[377299506,1754323894966,-760.76,0.00054794,120]
[377299507,1754323894976,-400.0,0.00054794,120]
[377299508,1754323894987,-400.0,0.00054794,120]
[377299509,1754323894997,-400.0,0.00054794,120]
[377299510,1754323895007,-573.14,0.00054794,120]
[377299511,1754323895018,-9235.1,0.00054794,120]
[377299512,1754323895028,-400.0,0.00054794,120]
[377299513,1754323895038,-400.0,0.00054794,120]
[377299514,1754323895050,-400.0,0.00054794,120]
[377299515,1754323895060,-400.0,0.00054794,120]
[377299516,1754323895069,-400.0,0.00054794,120]
[377299517,1754323895081,-595.68,0.00054794,120]
[377299518,1754323895091,-400.0,0.00054794,120]
[377299519,1754323895100,-400.0,0.00054794,120]
[377299520,1754323895110,-2037.16,0.00054794,120]
[377299521,1754323895122,-400.0,0.00054794,120]
[377299522,1754323895132,-400.0,0.00054794,120]
[377299523,1754323895143,-151.0,0.00054794,120]
[377299524,1754323895154,-151.0,0.00054794,120]
[377299525,1754323895164,-6259.09,0.00054794,120]
[377299526,1754323895174,-400.0,0.00054794,120]
[377299527,1754323895184,-400.0,0.00054794,120]
[377299528,1754323895194,-2367.17,0.00054794,120]
[377299529,1754323895204,-6048.26,0.00054794,120]
[377299530,1754323895214,-1071.92,0.00054794,30]
[377299531,1754323895224,-3278.47,0.00054794,120]
[377299532,1754323895234,-400.0,0.00054794,120]
[377299533,1754323895244,-400.0,0.00054794,120]
[377299534,1754323895254,-400.0,0.00054794,120]
[377299535,1754323895264,-219.92790911,0.00054794,120]
[377299536,1754323895275,-15023.16,0.00054794,120]
[377299537,1754323895284,-400.0,0.00054794,120]
[377299538,1754323895294,-400.0,0.00054794,120]
[377299539,1754323895305,-400.0,0.00054794,120]
[377299540,1754323895315,-400.0,0.00054794,120]
[377299541,1754323895327,-400.0,0.00054794,120]
[377299542,1754323895339,-151.0,0.00054794,120]
[377299543,1754323895349,-400.0,0.00054794,120]
[377299544,1754323895359,-1156.25,0.00054794,120]
[377299545,1754323895370,-400.0,0.00054794,120]
[377299546,1754323895380,-792.41,0.00054794,120]
[377299547,1754323895390,-400.0,0.00054794,120]
[377299548,1754323895401,-1221.81,0.00054794,120]
[377299549,1754323895412,-400.0,0.00054794,120]
[377299550,1754323895423,-721.61,0.00054794,120]
[377299551,1754323895434,-400.0,0.00054794,120]
[377299552,1754323895445,-400.0,0.00054794,120]
[377299553,1754323895455,-721.61,0.00054794,120]
[377299554,1754323895465,-817.83,0.00054794,120]
[377299555,1754323895474,-400.0,0.00054794,120]
[377299556,1754323895485,-721.61,0.00054794,120]
[377299557,1754323895495,-5977.91,0.00054794,120]
[377299558,1754323895505,-721.61,0.00054794,120]
[377299559,1754323895518,-721.61,0.00054794,120]
[377299560,1754323895529,-400.0,0.00054794,120]
[377299561,1754323895540,-887.72,0.00054794,120]
[377299562,1754323895553,-721.61,0.00054794,120]
[377299563,1754323895563,-400.0,0.00054794,120]
[377299564,1754323895572,-400.0,0.00054794,120]
[377299565,1754323895582,-400.0,0.00054794,120]
[377299566,1754323895593,-721.61,0.00054794,120]
[377299567,1754323895603,-721.61,0.00054794,120]
[377299568,1754323895614,-721.61,0.00054794,120]
[377299569,1754323895623,-5424.09,0.00054794,120]
[377299570,1754323895635,-721.61,0.00054794,120]
[377299571,1754323895645,-400.0,0.00054794,120]
[377299572,1754323895655,-721.61,0.00054794,120]
[377299573,1754323895667,-2638.6,0.00054794,120]
[377299574,1754323895679,-400.0,0.00054794,120]
[377299575,1754323895690,-2081.2,0.00054794,120]
[377299576,1754323895700,-609.22,0.00054794,120]
[377299577,1754323895712,-721.61,0.00054794,120]
[377299578,1754323895723,-2131.63,0.00054794,120]
[377299579,1754323895733,-721.61,0.00054794,120]
[377299580,1754323895743,-721.61,0.00054794,120]
[377299581,1754323895753,-721.61,0.00054794,120]
[377299582,1754323895763,-721.61,0.00054794,120]
[377299583,1754323895773,-761.3,0.00054794,120]
[377299584,1754323895783,-721.61,0.00054794,120]
[377299585,1754323895793,-721.61,0.00054794,120]
[377299586,1754323895806,-721.61,0.00054794,120]
[377299587,1754323895816,-721.61,0.00054794,120]
[377299588,1754323895826,-400.0,0.00054794,120]
[377299589,1754323895836,-721.61,0.00054794,120]
[377299590,1754323895846,-721.61,0.00054794,120]
[377299591,1754323895858,-400.0,0.00054794,120]
[377299592,1754323895869,-721.61,0.00054794,120]
[377299593,1754323895879,-400.0,0.00054794,120]
[377299594,1754323895890,-721.78253954,0.00054794,120]
[377299595,1754323895900,-2442.86,0.00054794,120]
[377299596,1754323895911,-400.0,0.00054794,120]
[377299597,1754323895922,-400.0,0.00054794,120]
[377299598,1754323895933,-400.0,0.00054794,120]
[377299599,1754323895944,-400.0,0.00054794,120]
[377299600,1754323895954,-516.79,0.00054794,120]
[377299601,1754323895965,-400.0,0.00054794,120]
[377299602,1754323895975,-43828.02,0.00054794,120]
[377299603,1754323895988,-5239.55,0.00054794,120]
[377299604,1754323895998,-400.0,0.00054794,120]
[377299605,1754323896009,-3920.89,0.00054794,120]
[377299606,1754323896019,-400.0,0.00054794,120]
[377299607,1754323896030,-843.34,0.00054794,120]
[377299608,1754323896040,-400.0,0.00054794,120]
[377299609,1754323896052,-400.0,0.00054794,120]
[377299610,1754323896063,-400.97707582,0.00054794,2]
[377299611,1754323896073,-400.0,0.00054794,120]
[377299612,1754323896084,-1510.9,0.00054794,120]
[377299613,1754323896094,-1444.18,0.00054794,120]
[377299614,1754323896105,-3510.05,0.00054794,120]
[377299615,1754323896115,-400.0,0.00054794,120]
[377299616,1754323896126,-1882.96,0.00054794,120]
[377299617,1754323896136,-1392.57,0.00054794,120]
[377299618,1754323896146,-437.91,0.00054794,120]
[377299619,1754323896156,-401.83410328,0.00054794,120]
[377299620,1754323896167,-400.0,0.00054794,120]
[377299621,1754323896177,-2764.16,0.00054794,120]
[377299622,1754323896187,-355.511064,0.00054794,120]
[377299623,1754323896200,-1466.75,0.00054794,120]
[377299624,1754323896210,-400.0,0.00054794,120]
[377299625,1754323896221,-5683.5,0.00054794,120]
[377299626,1754323896231,-400.0,0.00054794,120]
[377299627,1754323896242,-1143.82,0.00054794,120]
[377299628,1754323896252,-400.0,0.00054794,120]
[377299629,1754323896263,-400.0,0.00054794,120]
[377299630,1754323896273,-400.0,0.00054794,120]
[377299631,1754323896283,-400.0,0.00054794,120]
[377299632,1754323896294,-400.0,0.00054794,120]
[377299633,1754323896308,-400.0,0.00054794,120]
[377299634,1754323896319,-355.511066,0.00054794,120]
[377299635,1754323896335,-400.0,0.00054794,120]
[377299636,1754323896346,-400.0,0.00054794,120]
[377299637,1754323896356,-2530.57,0.00054794,120]
[377299638,1754323896367,-449.31,0.00054794,120]
[377299639,1754323896379,-604.63,0.00054794,120]
[377299640,1754323896391,-4901.44,0.00054794,120]
[377299641,1754323896402,-604.63,0.00054794,120]
[377299642,1754323896414,-604.63,0.00054794,120]
[377299643,1754323896426,-762.18,0.00054794,120]
[377299644,1754323896438,-604.63,0.00054794,120]
[377299645,1754323896449,-604.63,0.00054794,120]
[377299646,1754323896459,-4876.05,0.00054794,120]
[377299647,1754323896470,-604.63,0.00054794,120]
[377299648,1754323896480,-400.0,0.00054794,120]
[377299649,1754323896490,-1073.2,0.00054794,120]
[377299650,1754323896500,-1311.52,0.00054794,120]
[377299651,1754323896510,-506.82748806,0.00054794,120]
[377299652,1754323896520,-604.63,0.00054794,120]
[377299653,1754323896530,-604.63,0.00054794,120]
[377299654,1754323896540,-1590.29,0.00054794,120]
[377299655,1754323896551,-604.63,0.00054794,120]
[377299656,1754323896562,-604.63,0.00054794,120]
[377299657,1754323896572,-314.44997453,0.00054794,120]
[377299658,1754323896582,-604.63,0.00054794,120]
[377299659,1754323896593,-400.0,0.00054794,120]
[377299660,1754323896603,-604.63,0.00054794,120]
[377299661,1754323896613,-400.0,0.00054794,120]
[377299662,1754323896624,-604.63,0.00054794,120]
[377299663,1754323896634,-3033.34,0.00054794,2]
[377299664,1754323896644,-604.63,0.00054794,120]
[377299665,1754323896655,-604.63,0.00054794,120]
[377299666,1754323896665,-931.93,0.00054794,120]
[377299667,1754323896675,-604.63,0.00054794,120]
[377299668,1754323896686,-604.63,0.00054794,120]
[377299669,1754323896696,-6423.72,0.00054794,120]
[377299670,1754323896706,-604.63,0.00054794,120]
[377299671,1754323896716,-400.0,0.00054794,120]
[377299672,1754323896726,-604.63,0.00054794,120]
[377299673,1754323896736,-604.63,0.00054794,120]
[377299674,1754323896746,-400.0,0.00054794,120]
[377299675,1754323896757,-604.63,0.00054794,120]
[377299676,1754323896769,-10658.27,0.00054794,120]
[377299677,1754323896781,-604.63,0.00054794,120]
[377299678,1754323896792,-604.63,0.00054794,120]
[377299679,1754323896806,-400.0,0.00054794,120]
[377299680,1754323896816,-400.0,0.00054794,120]
[377299681,1754323896826,-604.74783048,0.00054794,120]
[377299682,1754323897126,-400.0,0.00054794,120]
[377299683,1754323897137,-400.0,0.00054794,120]
[377299684,1754323897146,-400.0,0.00054794,120]
[377299685,1754323897156,-400.0,0.00054794,120]
[377299686,1754323897167,-400.0,0.00054794,120]
[377299687,1754323897177,-400.0,0.00054794,120]
[377299688,1754323897186,-631.96,0.00054794,120]
[377299689,1754323897197,-400.0,0.00054794,120]
[377299690,1754323897206,-400.0,0.00054794,120]
[377299691,1754323897216,-400.0,0.00054794,120]
[377299692,1754323897227,-2757.83,0.00054794,120]
[377299693,1754323897237,-2812.87,0.00054794,120]
[377299694,1754323897247,-917.42,0.00054794,120]
[377299695,1754323897259,-400.0,0.00054794,120]
[377299696,1754323897268,-587.09,0.00054794,120]
[377299697,1754323897278,-549.62640393,0.00054794,120]
[377299698,1754323897288,-1293.08,0.00054794,120]
[377299699,1754323897299,-496.42,0.00054794,120]
[377299700,1754323897309,-1121.03,0.00054794,120]
[377299701,1754323897319,-400.0,0.00054794,120]
[377299702,1754323897334,-1121.03,0.00054794,120]
[377299703,1754323897345,-3321.68,0.00054794,120]
[377299704,1754323897355,-1121.03,0.00054794,120]
[377299705,1754323897366,-1226.3,0.00054794,120]
[377299706,1754323897376,-2618.63,0.00054794,120]